[Event "Early-Titled-Tuesday-Blitz-March-05-2024"]
[Site "Chess.com"]
[Date "2024.03.05"]
[Round "9"]
[White "Mikasinski"]
[Black "PeshkaCh"]
[Result "1/2-1/2"]
[WhiteElo "2625"]
[BlackElo "2818"]
[TimeControl "180+1"]
[EndTime "9:46:08 PST"]
[Termination "Game drawn by repetition"]

1. e4 {[%clk 0:02:40]} 1... e5 {[%clk 0:02:59.6]} 2. Nf3 {[%clk 0:02:39.7]} 2...
Nc6 {[%clk 0:03:00.2]} 3. Nc3 {[%clk 0:02:40.4]} 3... Nf6 {[%clk 0:02:59.6]} 4.
Bb5 {[%clk 0:02:41.1]} 4... Nd4 {[%clk 0:02:57.2]} 5. Nxd4 {[%clk 0:02:41]} 5...
exd4 {[%clk 0:02:58.1]} 6. e5 {[%clk 0:02:41.9]} 6... dxc3 {[%clk 0:02:54.7]} 7.
exf6 {[%clk 0:02:42.8]} 7... Qxf6 {[%clk 0:02:51.7]} 8. dxc3 {[%clk 0:02:42.6]}
8... c6 {[%clk 0:02:52.3]} 9. Bd3 {[%clk 0:02:42.4]} 9... d5 {[%clk 0:02:51.5]}
10. O-O {[%clk 0:02:43.1]} 10... Be6 {[%clk 0:02:50.8]} 11. Be3 {[%clk
0:02:41.4]} 11... Bd6 {[%clk 0:02:49.6]} 12. g3 {[%clk 0:02:39.1]} 12... O-O
{[%clk 0:02:43.4]} 13. Qh5 {[%clk 0:02:37.2]} 13... h6 {[%clk 0:02:34.9]} 14.
Bd4 {[%clk 0:02:35.3]} 14... Qg5 {[%clk 0:02:15.9]} 15. Qxg5 {[%clk 0:02:32.8]}
15... hxg5 {[%clk 0:02:16.8]} 16. Rfe1 {[%clk 0:02:28.5]} 16... Rfe8 {[%clk
0:02:15.9]} 17. b4 {[%clk 0:02:25.9]} 17... a6 {[%clk 0:02:02.2]} 18. a4 {[%clk
0:02:23.6]} 18... Bd7 {[%clk 0:01:58.7]} 19. a5 {[%clk 0:02:17.2]} 19... Bh3
{[%clk 0:01:46]} 20. f3 {[%clk 0:02:14.4]} 20... Be6 {[%clk 0:01:37.8]} 21. Kf2
{[%clk 0:02:12.5]} 21... Re7 {[%clk 0:01:36.8]} 22. Re2 {[%clk 0:02:10.7]} 22...
Rae8 {[%clk 0:01:36.8]} 23. Rae1 {[%clk 0:02:10.6]} 23... Bc8 {[%clk 0:01:33.6]}
24. Re3 {[%clk 0:01:59]} 24... Kf8 {[%clk 0:01:25.9]} 25. Rxe7 {[%clk
0:01:41.4]} 25... Rxe7 {[%clk 0:01:25.7]} 26. Rxe7 {[%clk 0:01:41.3]} 26... Bxe7
{[%clk 0:01:26.6]} 27. Ke3 {[%clk 0:01:38.1]} 27... Bd6 {[%clk 0:01:26.2]} 28.
Bc5 {[%clk 0:01:31.4]} 28... Bxc5+ {[%clk 0:01:19.1]} 29. bxc5 {[%clk
0:01:31.2]} 29... Ke7 {[%clk 0:01:19.8]} 30. c4 {[%clk 0:01:31.7]} 30... dxc4
{[%clk 0:01:10.4]} 31. Bxc4 {[%clk 0:01:31.7]} 31... Bf5 {[%clk 0:01:11]} 32. c3
{[%clk 0:01:30.8]} 32... Bg6 {[%clk 0:01:08.8]} 33. Kd4 {[%clk 0:01:27.8]} 33...
f6 {[%clk 0:01:08.7]} 34. Be2 {[%clk 0:01:23.8]} 34... Bf7 {[%clk 0:01:07.2]}
35. Bf1 {[%clk 0:01:23.8]} 35... Bd5 {[%clk 0:01:06.9]} 36. Ke3 {[%clk
0:01:22.7]} 36... Be6 {[%clk 0:01:04.8]} 37. Bd3 {[%clk 0:01:21.9]} 37... Bd7
{[%clk 0:01:04.8]} 38. Bg6 {[%clk 0:01:21.2]} 38... Be6 {[%clk 0:01:04.8]} 39.
Bd3 {[%clk 0:01:20.9]} 39... Bd7 {[%clk 0:01:05.1]} 40. Bc2 {[%clk 0:01:20.8]}
40... Be6 {[%clk 0:01:05.4]} 41. Be4 {[%clk 0:01:19.3]} 41... Bd7 {[%clk
0:01:05.8]} 42. Kd4 {[%clk 0:01:04.5]} 42... Be6 {[%clk 0:01:03.4]} 43. Ke3
{[%clk 0:00:57.3]} 43... Kd7 {[%clk 0:01:00.1]} 44. Bh7 {[%clk 0:00:42.7]} 44...
Ke7 {[%clk 0:00:54.4]} 45. Bc2 {[%clk 0:00:34.5]} 45... Bd7 {[%clk 0:00:54.2]}
46. Bb3 {[%clk 0:00:33.9]} 46... Bf5 {[%clk 0:00:49.2]} 47. Bc4 {[%clk
0:00:33.3]} 47... Bc8 {[%clk 0:00:49.2]} 48. Bd3 {[%clk 0:00:33.2]} 48... Be6
{[%clk 0:00:49.3]} 49. Kd4 {[%clk 0:00:33.3]} 49... Bd7 {[%clk 0:00:49.2]} 50.
Ke3 {[%clk 0:00:28]} 50... Be6 {[%clk 0:00:49]} 51. Ke4 {[%clk 0:00:28.2]} 51...
Bd5+ {[%clk 0:00:47.7]} 52. Ke3 {[%clk 0:00:28.4]} 52... Be6 {[%clk 0:00:47.8]}
1/2-1/2

[Event "Early-Titled-Tuesday-Blitz-March-05-2024"]
[Site "Chess.com"]
[Date "2024.03.05"]
[Round "9"]
[White "francyIM"]
[Black "RandomNoob04"]
[Result "1-0"]
[WhiteElo "2775"]
[BlackElo "2599"]
[TimeControl "180+1"]
[EndTime "9:46:09 PST"]
[Termination "francyIM won by checkmate"]

1. e4 {[%clk 0:03:00.9]} 1... d5 {[%clk 0:03:00.2]} 2. exd5 {[%clk 0:03:01]}
2... Qxd5 {[%clk 0:03:01.1]} 3. Nc3 {[%clk 0:02:58.5]} 3... Qa5 {[%clk
0:03:01.6]} 4. Bc4 {[%clk 0:02:56.5]} 4... Nf6 {[%clk 0:03:02]} 5. Nf3 {[%clk
0:02:54.3]} 5... Bg4 {[%clk 0:02:53.1]} 6. h3 {[%clk 0:02:53.5]} 6... Bh5 {[%clk
0:02:52.7]} 7. O-O {[%clk 0:02:50]} 7... e6 {[%clk 0:02:50.5]} 8. d4 {[%clk
0:02:47.6]} 8... Nc6 {[%clk 0:02:50.1]} 9. Bd2 {[%clk 0:02:39.4]} 9... O-O-O
{[%clk 0:02:28.3]} 10. Nd5 {[%clk 0:02:13.4]} 10... Bxf3 {[%clk 0:02:17.8]} 11.
gxf3 {[%clk 0:01:51.4]} 11... Qa4 {[%clk 0:02:17.9]} 12. b3 {[%clk 0:01:46.8]}
12... Qa3 {[%clk 0:02:18]} 13. Nxf6 {[%clk 0:01:46.8]} 13... gxf6 {[%clk
0:02:18.2]} 14. c3 {[%clk 0:01:47]} 14... e5 {[%clk 0:01:54.8]} 15. f4 {[%clk
0:01:28.7]} 15... exd4 {[%clk 0:01:48.9]} 16. Qf3 {[%clk 0:01:24.7]} 16... Qc5
{[%clk 0:01:02.8]} 17. Bxf7 {[%clk 0:01:01.3]} 17... dxc3 {[%clk 0:00:57.3]} 18.
Bxc3 {[%clk 0:01:00.1]} 18... Nd4 {[%clk 0:00:57.5]} 19. Bxd4 {[%clk 0:00:58.7]}
19... Rxd4 {[%clk 0:00:58.4]} 20. Rac1 {[%clk 0:00:52.9]} 20... Qd6 {[%clk
0:00:58.6]} 21. Rfe1 {[%clk 0:00:52.5]} 21... Bh6 {[%clk 0:00:57.3]} 22. Rc4
{[%clk 0:00:23.1]} 22... Rxc4 {[%clk 0:00:49.8]} 23. bxc4 {[%clk 0:00:20.5]}
23... Qxf4 {[%clk 0:00:46.9]} 24. Qa3 {[%clk 0:00:20.1]} 24... Kb8 {[%clk
0:00:42.7]} 25. Qe7 {[%clk 0:00:19.9]} 25... a6 {[%clk 0:00:38.4]} 26. Bd5
{[%clk 0:00:19.9]} 26... f5 {[%clk 0:00:19]} 27. Rb1 {[%clk 0:00:16.9]} 27... b6
{[%clk 0:00:19.2]} 28. Rxb6+ {[%clk 0:00:16.1]} 28... Kc8 {[%clk 0:00:16.2]} 29.
Be6# {[%clk 0:00:15.3]} 1-0

[Event "Early-Titled-Tuesday-Blitz-March-05-2024"]
[Site "Chess.com"]
[Date "2024.03.05"]
[Round "9"]
[White "SmirnovTimofey2000"]
[Black "Arteler"]
[Result "1-0"]
[WhiteElo "1978"]
[BlackElo "2394"]
[TimeControl "180+1"]
[EndTime "9:46:09 PST"]
[Termination "SmirnovTimofey2000 won by checkmate"]

1. e4 {[%clk 0:02:52.2]} 1... e6 {[%clk 0:02:57.6]} 2. d4 {[%clk 0:02:47.8]}
2... d5 {[%clk 0:02:57.9]} 3. Nc3 {[%clk 0:02:45.4]} 3... Nf6 {[%clk 0:02:57.1]}
4. e5 {[%clk 0:02:43.7]} 4... Nfd7 {[%clk 0:02:56.3]} 5. Nf3 {[%clk 0:02:44.3]}
5... c5 {[%clk 0:02:53.2]} 6. Bg5 {[%clk 0:02:44.4]} 6... Be7 {[%clk 0:02:52.3]}
7. Bxe7 {[%clk 0:02:41.9]} 7... Qxe7 {[%clk 0:02:53.2]} 8. Nb5 {[%clk
0:02:41.9]} 8... a6 {[%clk 0:02:04.7]} 9. Nc7+ {[%clk 0:02:37.9]} 9... Kd8
{[%clk 0:02:00.1]} 10. Nxa8 {[%clk 0:02:37.5]} 10... cxd4 {[%clk 0:01:59.8]} 11.
Qxd4 {[%clk 0:02:36.6]} 11... Nc6 {[%clk 0:01:56.6]} 12. Qh4 {[%clk 0:02:21.2]}
12... f6 {[%clk 0:01:53.3]} 13. exf6 {[%clk 0:02:20.8]} 13... gxf6 {[%clk
0:01:54.2]} 14. O-O-O {[%clk 0:02:14.7]} 14... b5 {[%clk 0:01:46.3]} 15. Nd4
{[%clk 0:02:07.8]} 15... Bb7 {[%clk 0:01:34.2]} 16. Nxc6+ {[%clk 0:02:03.9]}
16... Bxc6 {[%clk 0:01:29.5]} 17. Nc7 {[%clk 0:01:46]} 17... Kxc7 {[%clk
0:01:27.5]} 18. Be2 {[%clk 0:01:38.3]} 18... e5 {[%clk 0:01:15.8]} 19. Bg4
{[%clk 0:01:32.9]} 19... d4 {[%clk 0:01:14.9]} 20. Bxd7 {[%clk 0:01:28.6]} 20...
Bxd7 {[%clk 0:00:59.5]} 21. Qg3 {[%clk 0:01:18.7]} 21... Be6 {[%clk 0:00:52.6]}
22. Rxd4 {[%clk 0:01:10.1]} 22... Kb6 {[%clk 0:00:49.8]} 23. Rd2 {[%clk
0:01:05]} 23... Bxa2 {[%clk 0:00:43.3]} 24. Qe3+ {[%clk 0:00:59.9]} 24... Kb7
{[%clk 0:00:38.1]} 25. Rhd1 {[%clk 0:00:56.7]} 25... Be6 {[%clk 0:00:34.6]} 26.
Qe4+ {[%clk 0:00:53.4]} 26... Kb6 {[%clk 0:00:29.4]} 27. Rd6+ {[%clk 0:00:47.1]}
27... Ka5 {[%clk 0:00:26.4]} 28. Qe1+ {[%clk 0:00:39.4]} 28... b4 {[%clk
0:00:24.7]} 29. Qe3 {[%clk 0:00:27.7]} 29... Rc8 {[%clk 0:00:17.6]} 30. Qb6+
{[%clk 0:00:23.1]} 30... Ka4 {[%clk 0:00:17.3]} 31. Qxa6# {[%clk 0:00:21]} 1-0

[Event "Early-Titled-Tuesday-Blitz-March-05-2024"]
[Site "Chess.com"]
[Date "2024.03.05"]
[Round "9"]
[White "Joachim100x"]
[Black "AldokhinIvan"]
[Result "0-1"]
[WhiteElo "2500"]
[BlackElo "2663"]
[TimeControl "180+1"]
[EndTime "9:46:10 PST"]
[Termination "AldokhinIvan won by resignation"]

1. Nc3 {[%clk 0:03:00.9]} 1... Nf6 {[%clk 0:02:55.6]} 2. e4 {[%clk 0:03:00.4]}
2... d6 {[%clk 0:02:52.3]} 3. d4 {[%clk 0:03:00.3]} 3... c6 {[%clk 0:02:51.2]}
4. f4 {[%clk 0:03:00.3]} 4... b5 {[%clk 0:02:41.6]} 5. e5 {[%clk 0:03:00.3]}
5... dxe5 {[%clk 0:02:36.4]} 6. fxe5 {[%clk 0:03:00.1]} 6... Nd5 {[%clk
0:02:36.9]} 7. Nf3 {[%clk 0:02:54.6]} 7... Nxc3 {[%clk 0:02:25.3]} 8. bxc3
{[%clk 0:02:54.4]} 8... e6 {[%clk 0:02:24.4]} 9. Bd3 {[%clk 0:02:54.5]} 9... Be7
{[%clk 0:02:22.2]} 10. O-O {[%clk 0:02:54.3]} 10... Nd7 {[%clk 0:02:22.2]} 11.
Qe1 {[%clk 0:02:54.2]} 11... h6 {[%clk 0:01:56.4]} 12. Qg3 {[%clk 0:02:53.5]}
12... g5 {[%clk 0:01:56.1]} 13. h4 {[%clk 0:02:48.9]} 13... Rg8 {[%clk
0:01:46.4]} 14. hxg5 {[%clk 0:02:48.8]} 14... hxg5 {[%clk 0:01:46]} 15. Be4
{[%clk 0:02:40.6]} 15... Bb7 {[%clk 0:01:45]} 16. Be3 {[%clk 0:02:34.2]} 16...
Nb6 {[%clk 0:01:36.2]} 17. Qh2 {[%clk 0:02:28.1]} 17... Nd5 {[%clk 0:01:30.4]}
18. Qh7 {[%clk 0:02:17.7]} 18... Rf8 {[%clk 0:01:30.4]} 19. Bxd5 {[%clk
0:02:11.3]} 19... Qxd5 {[%clk 0:01:23.7]} 20. Bxg5 {[%clk 0:02:04.6]} 20... Bxg5
{[%clk 0:01:07.1]} 21. Nxg5 {[%clk 0:02:04.6]} 21... c5 {[%clk 0:01:07.5]} 22.
Nf3 {[%clk 0:01:34]} 22... O-O-O {[%clk 0:01:03.4]} 23. a4 {[%clk 0:01:33.7]}
23... b4 {[%clk 0:00:52.6]} 24. cxb4 {[%clk 0:01:30.4]} 24... c4 {[%clk
0:00:44.9]} 25. c3 {[%clk 0:01:22.6]} 25... Rg8 {[%clk 0:00:44.4]} 26. Qc2
{[%clk 0:01:22]} 26... Rg3 {[%clk 0:00:41]} 27. Rf2 {[%clk 0:01:20]} 27... Rdg8
{[%clk 0:00:41.2]} 28. Raf1 {[%clk 0:01:14.7]} 28... Qd8 {[%clk 0:00:23.4]} 29.
Qe2 {[%clk 0:01:00.7]} 29... Qf8 {[%clk 0:00:19.7]} 30. Qxc4+ {[%clk 0:00:51.6]}
30... Kb8 {[%clk 0:00:19.9]} 31. Qe2 {[%clk 0:00:41.5]} 31... Qg7 {[%clk
0:00:19.6]} 32. c4 {[%clk 0:00:38.2]} 32... Bxf3 {[%clk 0:00:18.6]} 0-1

[Event "Early-Titled-Tuesday-Blitz-March-05-2024"]
[Site "Chess.com"]
[Date "2024.03.05"]
[Round "9"]
[White "PavelShkapenko"]
[Black "LiamPutnam2008"]
[Result "0-1"]
[WhiteElo "2753"]
[BlackElo "2900"]
[TimeControl "180+1"]
[EndTime "9:46:14 PST"]
[Termination "LiamPutnam2008 won by resignation"]

1. e4 {[%clk 0:02:55.4]} 1... c5 {[%clk 0:02:52.7]} 2. Nc3 {[%clk 0:02:53.5]}
2... g6 {[%clk 0:02:51.9]} 3. g3 {[%clk 0:02:47.8]} 3... Bg7 {[%clk 0:02:51.4]}
4. Bg2 {[%clk 0:02:48.3]} 4... Nc6 {[%clk 0:02:45.4]} 5. d3 {[%clk 0:02:48.3]}
5... e6 {[%clk 0:02:46]} 6. Be3 {[%clk 0:02:45.1]} 6... d6 {[%clk 0:02:45.9]} 7.
Qd2 {[%clk 0:02:30.2]} 7... Rb8 {[%clk 0:02:38.1]} 8. Nge2 {[%clk 0:02:25.8]}
8... b5 {[%clk 0:02:37.1]} 9. O-O {[%clk 0:02:15]} 9... b4 {[%clk 0:02:12.6]}
10. Nd1 {[%clk 0:02:12.6]} 10... Nge7 {[%clk 0:02:11.6]} 11. Bh6 {[%clk
0:01:53.9]} 11... O-O {[%clk 0:02:11.5]} 12. Bxg7 {[%clk 0:01:51.5]} 12... Kxg7
{[%clk 0:02:12.4]} 13. Ne3 {[%clk 0:01:42.1]} 13... Bb7 {[%clk 0:01:40.1]} 14.
a3 {[%clk 0:01:11.2]} 14... a5 {[%clk 0:01:37.6]} 15. axb4 {[%clk 0:01:04.6]}
15... axb4 {[%clk 0:01:38.5]} 16. d4 {[%clk 0:01:05.1]} 16... cxd4 {[%clk
0:01:05]} 17. Nxd4 {[%clk 0:01:04.9]} 17... Qb6 {[%clk 0:00:46.4]} 18. Nxc6
{[%clk 0:00:47.8]} 18... Qxc6 {[%clk 0:00:47.3]} 19. Rfd1 {[%clk 0:00:39.3]}
19... b3 {[%clk 0:00:44.4]} 20. cxb3 {[%clk 0:00:37.4]} 20... Rfd8 {[%clk
0:00:43.7]} 21. Ng4 {[%clk 0:00:37]} 21... Ng8 {[%clk 0:00:36.4]} 22. Qc3+
{[%clk 0:00:35.6]} 22... e5 {[%clk 0:00:21.7]} 23. Rdc1 {[%clk 0:00:28]} 23...
Qd7 {[%clk 0:00:20.4]} 24. Ra7 {[%clk 0:00:27.2]} 24... Qxg4 {[%clk 0:00:19.5]}
25. Qb4 {[%clk 0:00:21.3]} 25... Qd7 {[%clk 0:00:15.2]} 26. Qb6 {[%clk
0:00:18.4]} 26... Rdc8 {[%clk 0:00:15.3]} 27. Rd1 {[%clk 0:00:17.4]} 27... Rc6
{[%clk 0:00:14.1]} 28. Qb5 {[%clk 0:00:16.6]} 28... Nf6 {[%clk 0:00:13.2]} 29.
h4 {[%clk 0:00:13.3]} 29... Rc1 {[%clk 0:00:12.9]} 30. Qf1 {[%clk 0:00:11.3]}
30... Rxd1 {[%clk 0:00:13.4]} 31. Qxd1 {[%clk 0:00:12.2]} 31... Qc6 {[%clk
0:00:14.3]} 32. Ra1 {[%clk 0:00:11.3]} 32... Qb6 {[%clk 0:00:14.4]} 33. Rc1
{[%clk 0:00:11.8]} 33... Bxe4 {[%clk 0:00:14.6]} 0-1

[Event "Early-Titled-Tuesday-Blitz-March-05-2024"]
[Site "Chess.com"]
[Date "2024.03.05"]
[Round "9"]
[White "tarno17"]
[Black "ChempionBg"]
[Result "0-1"]
[WhiteElo "2170"]
[BlackElo "2391"]
[TimeControl "180+1"]
[EndTime "9:46:16 PST"]
[Termination "ChempionBg won on time"]

1. e4 {[%clk 0:02:57.3]} 1... c5 {[%clk 0:02:59.2]} 2. Nf3 {[%clk 0:02:56.6]}
2... d6 {[%clk 0:02:57.8]} 3. Bb5+ {[%clk 0:02:55.3]} 3... Bd7 {[%clk
0:02:57.2]} 4. Bxd7+ {[%clk 0:02:55.7]} 4... Qxd7 {[%clk 0:02:57.6]} 5. O-O
{[%clk 0:02:55.9]} 5... Nc6 {[%clk 0:02:54.6]} 6. Nc3 {[%clk 0:02:49.2]} 6... g6
{[%clk 0:02:53]} 7. d3 {[%clk 0:02:48.6]} 7... Bg7 {[%clk 0:02:52.5]} 8. Ne2
{[%clk 0:02:49.4]} 8... Nf6 {[%clk 0:02:51.2]} 9. Ng3 {[%clk 0:02:49.3]} 9...
O-O {[%clk 0:02:50.6]} 10. Re1 {[%clk 0:02:49.9]} 10... Ng4 {[%clk 0:02:40.5]}
11. c3 {[%clk 0:02:27.4]} 11... d5 {[%clk 0:02:29.1]} 12. e5 {[%clk 0:02:09.8]}
12... Ngxe5 {[%clk 0:02:18.7]} 13. Nxe5 {[%clk 0:01:57.3]} 13... Nxe5 {[%clk
0:02:18]} 14. Bf4 {[%clk 0:01:53.7]} 14... Nc6 {[%clk 0:02:15.3]} 15. Qd2 {[%clk
0:01:50.3]} 15... Rfe8 {[%clk 0:02:13.1]} 16. Bh6 {[%clk 0:01:48.2]} 16... Bh8
{[%clk 0:02:06]} 17. Qg5 {[%clk 0:01:44.3]} 17... f6 {[%clk 0:01:36.3]} 18. Qe3
{[%clk 0:01:34]} 18... d4 {[%clk 0:01:28.5]} 19. Qf3 {[%clk 0:00:54.2]} 19...
dxc3 {[%clk 0:01:19.5]} 20. bxc3 {[%clk 0:00:54]} 20... Ne5 {[%clk 0:01:19.5]}
21. Qe4 {[%clk 0:00:49.2]} 21... f5 {[%clk 0:01:05.7]} 22. Qe3 {[%clk
0:00:28.8]} 22... Nxd3 {[%clk 0:00:44.8]} 23. Rad1 {[%clk 0:00:21.4]} 23... c4
{[%clk 0:00:43.6]} 24. Nh5 {[%clk 0:00:03]} 24... Qc6 {[%clk 0:00:22.8]} 25. Nf4
{[%clk 0:00:02.4]} 25... e5 {[%clk 0:00:19.6]} 26. Nxd3 {[%clk 0:00:02.5]} 26...
cxd3 {[%clk 0:00:18.7]} 27. Rxd3 {[%clk 0:00:03.4]} 27... e4 {[%clk 0:00:17.9]}
28. Rd2 {[%clk 0:00:01.2]} 28... Qxc3 {[%clk 0:00:15.5]} 0-1

[Event "Early-Titled-Tuesday-Blitz-March-05-2024"]
[Site "Chess.com"]
[Date "2024.03.05"]
[Round "9"]
[White "djano"]
[Black "PepeCuenca"]
[Result "0-1"]
[WhiteElo "2563"]
[BlackElo "2702"]
[TimeControl "180+1"]
[EndTime "9:46:20 PST"]
[Termination "PepeCuenca won by resignation"]

1. e4 {[%clk 0:03:00.9]} 1... c5 {[%clk 0:02:59.6]} 2. Nc3 {[%clk 0:03:00.9]}
2... Nc6 {[%clk 0:02:59.6]} 3. Bb5 {[%clk 0:03:00.5]} 3... Nd4 {[%clk
0:02:57.9]} 4. Nf3 {[%clk 0:03:00.9]} 4... e6 {[%clk 0:02:57.5]} 5. O-O {[%clk
0:03:00.7]} 5... a6 {[%clk 0:02:57.5]} 6. Bd3 {[%clk 0:03:00.5]} 6... Nc6 {[%clk
0:02:57.8]} 7. Nd5 {[%clk 0:02:54.4]} 7... d6 {[%clk 0:02:45.2]} 8. Ne3 {[%clk
0:02:52.1]} 8... g6 {[%clk 0:02:42.2]} 9. c3 {[%clk 0:02:49]} 9... Bg7 {[%clk
0:02:41.6]} 10. Bc2 {[%clk 0:02:48.5]} 10... e5 {[%clk 0:02:39.4]} 11. d4 {[%clk
0:02:43.1]} 11... exd4 {[%clk 0:02:20.1]} 12. cxd4 {[%clk 0:02:44]} 12... Nxd4
{[%clk 0:02:19.8]} 13. Nxd4 {[%clk 0:02:43.2]} 13... Bxd4 {[%clk 0:02:20.7]} 14.
Nd5 {[%clk 0:02:43.7]} 14... Be6 {[%clk 0:02:13]} 15. Rb1 {[%clk 0:02:34.9]}
15... Bxd5 {[%clk 0:01:55.4]} 16. exd5 {[%clk 0:02:30.4]} 16... Ne7 {[%clk
0:01:52.6]} 17. Bh6 {[%clk 0:02:26.4]} 17... Qd7 {[%clk 0:01:24]} 18. b4 {[%clk
0:02:22]} 18... O-O-O {[%clk 0:01:21.9]} 19. b5 {[%clk 0:02:09.1]} 19... axb5
{[%clk 0:01:06.2]} 20. Bd3 {[%clk 0:02:09.1]} 20... Nxd5 {[%clk 0:00:41.1]} 21.
Bxb5 {[%clk 0:02:05.4]} 21... Qc7 {[%clk 0:00:41.3]} 22. Qa4 {[%clk 0:01:59.2]}
22... Kb8 {[%clk 0:00:36.4]} 23. Bd2 {[%clk 0:01:49.4]} 23... Bc3 {[%clk
0:00:21.9]} 24. Bc6 {[%clk 0:01:41.2]} 24... Nb6 {[%clk 0:00:16.3]} 25. Rxb6
{[%clk 0:01:34.3]} 25... Qxb6 {[%clk 0:00:16.6]} 26. Bxc3 {[%clk 0:01:26.4]}
26... Qxc6 {[%clk 0:00:16.9]} 27. Qb3 {[%clk 0:01:11.9]} 27... Rhe8 {[%clk
0:00:15.2]} 28. Ba5 {[%clk 0:01:10.9]} 28... Rc8 {[%clk 0:00:11.7]} 29. Rb1
{[%clk 0:01:08.9]} 29... Qa6 {[%clk 0:00:09.2]} 30. h4 {[%clk 0:01:03.9]} 30...
d5 {[%clk 0:00:06.2]} 31. Qg3+ {[%clk 0:01:02]} 31... Ka8 {[%clk 0:00:05.8]} 32.
Bd2 {[%clk 0:00:59.7]} 32... c4 {[%clk 0:00:05]} 33. Bc3 {[%clk 0:00:55.1]}
33... Red8 {[%clk 0:00:04.8]} 34. Bd4 {[%clk 0:00:55.5]} 34... c3 {[%clk
0:00:04.2]} 35. Rb6 {[%clk 0:00:54.4]} 35... Qa5 {[%clk 0:00:02.3]} 36. Rb1
{[%clk 0:00:40.5]} 36... c2 {[%clk 0:00:02.7]} 37. Rc1 {[%clk 0:00:41]} 37...
Rc4 {[%clk 0:00:02.5]} 38. Bf6 {[%clk 0:00:40.3]} 38... Rdc8 {[%clk 0:00:02.9]}
39. Qd3 {[%clk 0:00:36.8]} 39... d4 {[%clk 0:00:03]} 40. Qxd4 {[%clk 0:00:35.7]}
40... Rxd4 {[%clk 0:00:02.6]} 0-1

[Event "Early-Titled-Tuesday-Blitz-March-05-2024"]
[Site "Chess.com"]
[Date "2024.03.05"]
[Round "9"]
[White "chessamical"]
[Black "db-banana"]
[Result "1-0"]
[WhiteElo "2203"]
[BlackElo "2464"]
[TimeControl "180+1"]
[EndTime "9:46:21 PST"]
[Termination "chessamical won by resignation"]

1. d4 {[%clk 0:02:58.4]} 1... Nf6 {[%clk 0:02:54.6]} 2. Bf4 {[%clk 0:02:58.1]}
2... e6 {[%clk 0:02:50.1]} 3. e3 {[%clk 0:02:58]} 3... b6 {[%clk 0:02:49.3]} 4.
Nf3 {[%clk 0:02:57.2]} 4... Bb7 {[%clk 0:02:49.5]} 5. Nbd2 {[%clk 0:02:56.2]}
5... Be7 {[%clk 0:02:50]} 6. Bd3 {[%clk 0:02:53]} 6... d5 {[%clk 0:02:49.6]} 7.
h3 {[%clk 0:02:45.5]} 7... O-O {[%clk 0:02:49.6]} 8. Qe2 {[%clk 0:02:43.8]} 8...
c5 {[%clk 0:02:49.6]} 9. c3 {[%clk 0:02:43.6]} 9... Ne4 {[%clk 0:02:48.3]} 10.
O-O {[%clk 0:02:36.8]} 10... Nd7 {[%clk 0:02:42.1]} 11. Ba6 {[%clk 0:02:33.3]}
11... Qc8 {[%clk 0:02:27.4]} 12. Bxb7 {[%clk 0:02:30.2]} 12... Qxb7 {[%clk
0:02:26.9]} 13. Nxe4 {[%clk 0:02:02.3]} 13... dxe4 {[%clk 0:02:26.2]} 14. Nd2
{[%clk 0:02:02.8]} 14... Rfe8 {[%clk 0:02:15.8]} 15. a4 {[%clk 0:01:33.3]} 15...
Bf6 {[%clk 0:02:14.6]} 16. Nc4 {[%clk 0:01:30.9]} 16... Qa6 {[%clk 0:02:03.3]}
17. Rfe1 {[%clk 0:01:29.7]} 17... cxd4 {[%clk 0:01:54]} 18. exd4 {[%clk
0:01:27.9]} 18... e5 {[%clk 0:01:30.8]} 19. Nxe5 {[%clk 0:01:22.2]} 19... Qxe2
{[%clk 0:01:29.1]} 20. Rxe2 {[%clk 0:01:21.7]} 20... Nxe5 {[%clk 0:01:19.6]} 21.
dxe5 {[%clk 0:01:16.4]} 21... Bxe5 {[%clk 0:01:20.5]} 22. Rxe4 {[%clk
0:01:15.5]} 22... Bxf4 {[%clk 0:01:20.1]} 23. Rxf4 {[%clk 0:01:16.4]} 23... Re2
{[%clk 0:01:19.3]} 24. Rd1 {[%clk 0:01:04.4]} 24... Re7 {[%clk 0:00:36.1]} 25.
Rfd4 {[%clk 0:00:45.1]} 25... g6 {[%clk 0:00:36.5]} 26. Kf1 {[%clk 0:00:38.1]}
26... Re5 {[%clk 0:00:23]} 27. Rd8+ {[%clk 0:00:33.5]} 27... Rxd8 {[%clk
0:00:22.3]} 28. Rxd8+ {[%clk 0:00:33.2]} 28... Kg7 {[%clk 0:00:22.8]} 29. Rd7
{[%clk 0:00:24.4]} 29... Ra5 {[%clk 0:00:16.3]} 30. b3 {[%clk 0:00:24.4]} 30...
b5 {[%clk 0:00:16.9]} 31. Rd5 {[%clk 0:00:24.1]} 31... a6 {[%clk 0:00:16.5]} 32.
c4 {[%clk 0:00:20.8]} 32... Kf6 {[%clk 0:00:09.8]} 33. cxb5 {[%clk 0:00:21.2]}
33... Ke6 {[%clk 0:00:06.8]} 34. Rc5 {[%clk 0:00:20.7]} 34... Kd6 {[%clk
0:00:06.1]} 35. Rc6+ {[%clk 0:00:20.9]} 35... Kd5 {[%clk 0:00:04.5]} 36. Rxa6
{[%clk 0:00:21.8]} 1-0